bitfinex/quotes_ETHUSD_20260106
["timestamp","ask_amount","ask_price","bid_price","bid_amount"]
[1767690983994,0.002,3222.2,3221.6,1.0685261]
[1767690984168,0.002,3222.2,3221.7,1.0685261]
[1767690984489,0.002,3222.2,3221.8,1.0685261]
[1767690989393,0.002,3222.2,3221.7,0.41725147]
[1767690989698,1.05093936,3222.2,3221.6,1.0685261]
[1767690989899,1.05093936,3222.2,3221.4,4.17268961]
[1767690990198,1.05093936,3222.2,3221.5,1.0685261]
[1767690990881,1.05093936,3222.2,3221.4,3.10424002]
[1767690991068,1.05093936,3222.2,3221.4,4.13914838]
[1767690991269,1.11865766,3222.1,3221.4,1.03490836]
[1767690991789,6.2089821,3222.2,3221.3,1.1994254]
[1767690991995,1.11865766,3222.1,3221.3,1.1994254]
[1767690992800,1.11865766,3221.9,3221.6,0.001]
[1767690993574,3.10366232,3222.0,3221.6,0.001]
[1767690994606,3.1036035,3222.1,3221.6,0.001]
[1767690994797,7.327597,3222.2,3221.6,0.001]
[1767690995904,6.20893934,3222.2,3221.6,0.001]
[1767690996107,6.20893934,3222.2,3221.6,1.2004254]
[1767690996731,3.10546967,3222.2,3221.6,1.2004254]
[1767690996886,0.813,3222.1,3221.6,1.2004254]
[1767690997088,0.815,3222.2,3221.6,1.2004254]
[1767690999886,0.002,3222.2,3221.7,1.1994254]
[1767691001712,0.002,3222.2,3221.7,4.30334898]
[1767691002221,0.002,3222.2,3221.8,1.1994254]
[1767691004609,0.002,3221.9,3221.8,1.1994254]
[1767691005742,0.002,3222.2,3221.8,1.1994254]
[1767691006036,0.002,3222.2,3221.9,0.43033717]
[1767691006530,0.002,3222.2,3221.8,1.1994254]
[1767691010855,0.002,3222.2,3221.9,1.1994254]
[1767691011619,0.002,3222.5,3222.1,1.1994254]
[1767691012246,0.002,3222.5,3222.2,1.1994254]
[1767691012740,0.002,3222.7,3222.4,1.1994254]
[1767691012934,0.002,3222.7,3222.1,6.20710866]
[1767691012935,1.11865766,3222.6,3222.1,6.20710866]
[1767691013241,1.11865766,3222.6,3222.2,0.62071087]
[1767691013745,1.11865766,3222.6,3222.1,3.10354267]
[1767691014279,0.002,3222.7,3221.9,1.1994254]
[1767691014414,1.12065766,3222.7,3221.9,1.1994254]
[1767691014817,0.002,3222.7,3221.9,1.1994254]
[1767691016645,0.002,3222.7,3222.1,1.22917125]
[1767691016848,0.002,3222.7,3222.3,1.22817125]
[1767691018151,5.12555238,3223.3,3222.6,1.22817125]
[1767691019346,1.21009041,3223.2,3222.3,1.22817125]
[1767691020051,1.22563767,3223.2,3222.1,4.33270882]
[1767691020450,1.22563767,3223.2,3222.2,4.33163789]
[1767691020650,1.22563767,3223.2,3222.2,5.07526718]
[1767691020822,1.21009041,3223.0,3222.2,1.97180054]
[1767691022161,1.21009041,3223.0,3222.3,1.30618667]
[1767691022347,1.21009041,3223.0,3222.2,3.84708913]
[1767691023031,1.21009041,3223.0,3222.2,0.74362929]
[1767691023448,1.21009041,3223.0,3222.2,3.84708238]
[1767691023773,1.21009041,3223.0,3222.3,0.38480824]
[1767691024129,3.10264293,3223.1,3222.3,0.38480824]
[1767691024342,4.28556676,3223.1,3222.3,1.69099491]
[1767691024875,3.10279561,3222.9,3222.3,1.69099491]
[1767691025032,1.18292383,3222.8,3222.1,0.001]
[1767691025930,1.18292383,3222.8,3222.1,1.30718667]
[1767691026545,0.35281275,3223.1,3222.2,1.30618667]
[1767691026750,0.01554726,3223.2,3222.2,1.30618667]
[1767691026946,3.10260308,3223.1,3222.3,1.30618667]
[1767691027655,3.10246048,3223.3,3222.4,1.30618667]
[1767691027854,6.20492096,3223.3,3222.4,1.30618667]
[1767691028540,0.002,3222.5,3222.4,1.30618667]
[1767691028741,0.002,3222.8,3222.2,3.10342278]
[1767691028947,0.002,3222.8,3222.3,0.39174228]
[1767691029328,0.002,3222.8,3222.3,3.49508947]
[1767691029861,0.36985621,3222.8,3222.3,0.39174228]
[1767691031646,0.36985621,3222.8,3222.3,3.49511524]
[1767691031847,0.002,3222.8,3222.4,1.30618667]
[1767691032049,0.002,3222.8,3222.5,1.30618667]
[1767691032236,0.002,3222.8,3222.6,2.11918667]
[1767691032733,0.002,3222.8,3222.6,0.813]
[1767691032950,3.10493969,3222.8,3222.3,1.30618667]
[1767691033158,0.002,3222.8,3222.3,2.11918667]
[1767691034163,0.002,3222.8,3222.4,1.30618667]
[1767691034367,0.002,3222.8,3222.5,1.648724]
[1767691034740,0.002,3222.8,3222.5,1.30618667]
[1767691035579,6.021559,3223.1,3222.5,1.30618667]
[1767691036246,2.91891781,3223.1,3222.5,1.30618667]
[1767691037437,3.10241057,3223.3,3222.5,1.30618667]
[1767691037642,3.10241057,3223.3,3222.6,1.30618667]
[1767691038568,0.002,3223.5,3222.6,1.30618667]
[1767691038773,3.1042862,3223.5,3222.6,1.30618667]
[1767691039868,6.2065724,3223.5,3222.6,1.30618667]
[1767691040240,6.62655115,3223.5,3222.6,1.30618667]
[1767691041446,6.62655115,3223.5,3222.6,1.74723097]
[1767691041651,6.62655115,3223.5,3222.7,1.30618667]
[1767691042754,6.62655115,3223.5,3222.7,2.11918667]
[1767691042979,0.43318529,3223.4,3222.7,2.11918667]
[1767691044076,3.10241057,3223.3,3222.7,1.30618667]
[1767691044317,3.10241057,3223.3,3222.7,2.11918667]
[1767691044490,3.10241057,3223.3,3222.7,2.33110534]
[1767691044783,6.6422992,3223.3,3222.7,2.33110534]
[1767691044966,3.53988863,3223.3,3222.7,1.30618667]
[1767691045172,6.6422992,3223.3,3222.7,2.11918667]
[1767691045378,3.53988863,3223.3,3222.7,2.11918667]
[1767691048989,6.6422992,3223.3,3222.7,1.30618667]
[1767691049293,6.6422992,3223.3,3222.6,0.813]
[1767691049473,0.45818986,3223.2,3222.6,0.813]
[1767691049668,0.45818986,3223.2,3222.6,2.11918667]
[1767691051089,0.45818986,3223.2,3222.4,2.12018667]
[1767691051090,0.46618339,3223.1,3222.4,2.12018667]
[1767691053068,3.56879922,3223.1,3222.7,0.001]
[1767691053474,0.46618339,3223.1,3222.7,0.001]
[1767691053673,0.002,3223.2,3222.7,0.001]
[1767691053875,0.002,3223.2,3222.7,1.2949856]
[1767691055197,0.86567634,3223.2,3222.7,0.001]
[1767691055401,0.48729621,3223.2,3222.5,1.2939856]
[1767691056083,0.48899407,3223.0,3222.4,0.001]
[1767691056296,4.6182737,3222.5,3222.1,0.001]
[1767691056476,4.6182737,3222.2,3221.7,1.2939856]
[1767691056665,4.3700598,3222.4,3221.7,1.2939856]
[1767691056869,4.3700598,3222.4,3221.6,0.814]
[1767691056870,1.26670697,3222.3,3221.6,0.001]
[1767691057075,1.26670697,3222.3,3221.5,1.2939856]
[1767691057076,4.6182737,3222.2,3221.5,1.2939856]
[1767691057308,5.88498067,3222.2,3221.5,1.2939856]
[1767691058198,1.26670697,3222.2,3221.5,1.2939856]
[1767691058778,4.3700598,3222.4,3221.6,1.2939856]
[1767691058982,1.26670697,3222.4,3221.7,1.2939856]
[1767691061008,3.10337336,3222.3,3221.7,1.2939856]
[1767691061505,3.91621592,3222.5,3221.7,1.2939856]
[1767691062288,1.26670697,3222.4,3221.5,3.10412903]
[1767691062607,1.26670697,3222.4,3221.6,0.3104129]
[1767691062988,1.26670697,3222.4,3221.3,3.10428169]
[1767691063189,1.26670697,3222.2,3221.2,3.10440861]
[1767691063600,1.26670697,3222.2,3221.2,6.20884174]
[1767691065808,1.26670697,3222.2,3221.6,0.001]
[1767691066717,1.26670697,3222.1,3221.6,0.001]
[1767691067517,3.10348678,3222.2,3221.6,1.2949856]
[1767691067683,4.37019375,3222.2,3221.6,0.001]
[1767691068018,1.26670697,3222.2,3221.6,0.001]
[1767691068183,4.37017875,3222.2,3221.6,0.001]
[1767691068711,4.37017875,3222.2,3221.6,1.2949856]
[1767691069082,3.10347178,3222.2,3221.6,1.2949856]
[1767691069716,3.10342057,3222.3,3221.6,1.2949856]
[1767691070033,3.10342057,3222.3,3221.7,1.2939856]
[1767691073520,1.26670697,3222.1,3221.6,0.001]
[1767691073682,1.26670697,3221.9,3221.0,3.10458876]
[1767691073887,1.26670697,3221.9,3221.1,3.4149769]
[1767691074090,5.4312737,3222.0,3221.2,1.2939856]
[1767691074780,1.26670697,3221.9,3221.1,3.4149769]
[1767691074983,5.4312737,3222.0,3221.2,1.2939856]
[1767691075718,3.10375865,3221.9,3221.2,1.2939856]
[1767691076019,5.4312737,3222.0,3221.2,1.2939856]
[1767691076020,9.86841185,3222.0,3221.2,1.76488941]
[1767691076381,6.76472329,3222.0,3221.2,4.86930978]
[1767691076595,9.86840035,3222.0,3221.2,1.76488941]
[1767691077611,1.33344959,3221.9,3221.2,1.76488941]
[1767691077804,1.33344959,3221.9,3221.1,0.31045888]
[1767691078006,3.91670196,3222.0,3221.0,1.32550643]
[1767691078201,5.25015155,3222.0,3221.0,1.32550643]
[1767691078594,5.25015155,3222.0,3221.5,0.001]
[1767691078796,1.33344959,3221.9,3221.5,0.001]
[1767691080314,3.91870196,3222.0,3221.5,0.001]
[1767691081610,0.815,3222.0,3221.5,1.27144753]
[1767691081830,3.91867642,3222.0,3221.5,0.001]
[1767691082493,1.19986,3221.9,3221.5,0.001]
[1767691084918,7.72203603,3221.9,3221.1,1.27044753]
[1767691085323,4.6182737,3221.9,3221.1,1.27044753]
[1767691086325,7.72203306,3221.9,3221.1,1.27044753]
[1767691086735,4.6182737,3221.9,3221.1,1.27044753]
[1767691086931,4.6182737,3221.9,3221.3,1.27044753]
[1767691087220,0.815,3222.0,3221.3,1.27044753]
[1767691087595,0.002,3222.0,3221.3,1.27044753]
[1767691088008,0.815,3222.0,3221.3,1.27044753]
[1767691089224,0.815,3222.0,3221.4,1.27044753]
[1767691089420,0.815,3222.0,3221.6,1.27044753]
[1767691091399,0.002,3222.0,3221.6,1.27044753]
[1767691092424,0.002,3221.7,3221.6,1.27044753]
[1767691092606,0.002,3222.0,3221.7,1.27044753]
[1767691093794,0.002,3222.0,3221.5,0.43747192]
[1767691094223,4.6202737,3222.0,3221.5,0.43747192]
[1767691094419,5.8201337,3222.0,3221.4,0.001]
[1767691095027,5.8201337,3222.0,3221.4,4.37567167]
[1767691095601,0.002,3222.0,3221.5,1.27044753]
[1767691095802,0.002,3222.0,3221.6,1.27044753]
[1767691097801,0.002,3222.0,3221.7,1.27044753]
[1767691098045,0.002,3222.0,3221.8,1.27044753]
[1767691101203,0.002,3222.0,3221.5,1.27044753]
[1767691102105,1.20186,3222.0,3221.4,0.001]
[1767691103434,1.20186,3222.0,3221.2,4.13394613]
[1767691104438,0.002,3221.7,3221.2,4.13394613]
[1767691104619,0.002,3221.7,3221.3,0.72384745]
[1767691105350,0.002,3221.7,3221.1,3.10452837]
[1767691105351,1.19986,3221.6,3220.8,3.10476067]
[1767691105504,1.19986,3221.6,3220.7,3.10488751]
[1767691105911,1.19986,3221.6,3220.7,3.11526139]
[1767691106112,1.19986,3221.6,3220.8,0.31162614]
[1767691106523,1.19986,3221.6,3220.7,0.01037388]
[1767691107043,1.19986,3221.6,3220.6,3.1059915]
[1767691107346,1.19986,3221.5,3220.6,0.001]
[1767691107847,1.19986,3221.5,3220.6,0.02162719]
[1767691109446,1.19986,3221.5,3220.6,0.001]
[1767691109651,1.19986,3221.3,3220.6,0.001]
[1767691110054,2.01286,3221.3,3220.6,0.001]
[1767691110350,1.19986,3221.2,3220.6,0.001]
[1767691111420,1.20878008,3221.1,3220.6,0.001]
[1767691111616,1.20878008,3221.1,3220.4,0.001]
[1767691112444,1.20878008,3221.1,3220.4,0.31162775]
[1767691112650,1.20878008,3221.1,3220.4,0.001]
[1767691115967,1.20878008,3221.0,3220.4,0.001]
[1767691116169,1.20878008,3221.0,3220.7,0.001]
[1767691116330,1.20878008,3221.0,3220.4,0.001]
[1767691116652,1.20878008,3221.0,3220.0,3.10556443]
[1767691116851,1.20878008,3221.0,3220.0,3.7267923]
[1767691117261,1.20878008,3221.0,3220.0,6.83238236]
[1767691117635,0.813,3220.9,3220.0,6.83238236]
[1767691118261,0.813,3220.8,3220.0,6.83238236]
[1767691118662,0.813,3220.8,3220.0,3.7267923]
[1767691118858,1.20878008,3220.7,3220.0,3.7267923]
[1767691119843,1.20878008,3220.7,3220.0,6.83238236]
[1767691120035,1.20878008,3220.7,3220.1,0.68323824]
[1767691120232,1.20878008,3220.7,3220.2,3.10539718]
[1767691121737,0.813,3220.8,3220.2,6.21079436]
[1767691122469,1.20878008,3221.0,3220.2,6.21079436]
[1767691122663,0.813,3220.9,3220.2,6.21079436]
[1767691122962,0.813,3221.1,3220.3,0.68940326]
[1767691123134,1.20878008,3221.2,3220.3,0.68940326]
[1767691123338,2.02178008,3221.2,3220.3,0.68940326]
[1767691125463,2.02178008,3221.2,3220.4,3.10520432]
[1767691125464,1.20878008,3221.2,3220.4,3.10520432]
[1767691125668,1.20878008,3221.1,3220.3,0.68940326]
[1767691125963,1.20878008,3221.1,3220.2,3.10533947]
[1767691126367,1.20878008,3221.1,3220.3,3.10525641]
[1767691127081,1.20878008,3221.1,3220.2,3.10536863]
[1767691127281,1.20878008,3221.1,3220.3,3.10528382]
[1767691127644,1.20878008,3221.1,3220.2,3.10539718]
[1767691127645,1.20878008,3221.0,3220.2,3.10539718]
[1767691127865,1.20878008,3220.7,3220.3,0.37886354]
[1767691130472,1.20878008,3220.7,3220.1,0.68323824]
[1767691130682,1.20878008,3220.7,3220.1,3.78866059]
[1767691130847,1.20878008,3220.7,3220.2,3.10534194]
[1767691132647,1.20878008,3220.7,3220.1,3.78869496]
[1767691133862,0.002,3220.8,3220.1,6.89418857]
[1767691134069,0.002,3220.8,3220.2,0.68941886]
[1767691134773,0.002,3220.8,3220.3,6.21060148]
[1767691135150,1.17107543,3221.0,3220.3,6.21060148]
[1767691135393,1.17107543,3221.6,3220.3,9.31590222]
[1767691135888,0.002,3221.7,3220.3,12.42120296]
[1767691136192,0.002,3221.7,3220.4,5.63948415]
[1767691136391,1.17307543,3221.7,3220.4,5.63948415]
[1767691136993,1.17307543,3221.7,3220.5,6.2102158]
[1767691137198,1.17307543,3221.7,3220.6,0.814]
[1767691139997,1.17307543,3221.7,3220.7,6.20983016]
[1767691140293,1.17307543,3221.7,3220.8,0.70238302]
[1767691141582,0.002,3221.4,3220.8,0.70238302]
[1767691142150,0.002,3221.4,3220.8,3.80715767]
[1767691142381,1.13765897,3221.4,3220.8,3.80715767]
[1767691148893,0.002,3221.4,3220.8,6.91197634]
[1767691149189,0.002,3221.4,3220.9,0.69119763]
[1767691150070,1.13765897,3221.4,3220.9,0.69119763]
[1767691150276,1.13765897,3221.4,3220.8,3.10477465]
[1767691151096,1.13765897,3221.4,3220.6,6.21002296]
[1767691152072,1.13765897,3221.4,3220.6,10.04002296]
[1767691154099,1.13765897,3221.4,3221.1,0.001]
[1767691163992,0.002,3221.4,3221.1,0.001]
[1767691165707,1.13765897,3221.4,3221.1,0.001]
[1767691173599,0.002,3222.0,3221.1,4.6236272]
[1767691173806,0.002,3222.0,3221.5,4.6226272]
[1767691174004,0.002,3222.0,3221.2,5.11481138]
[1767691174187,1.07947879,3222.0,3221.3,6.2086735]
[1767691174517,0.002,3222.0,3221.3,6.2086735]
[1767691174987,0.002,3222.0,3221.4,0.0310424]
[1767691175199,0.002,3222.0,3221.5,0.62397159]
[1767691175385,1.07947879,3222.0,3221.5,0.62397159]
[1767691175715,1.07947879,3222.0,3221.3,3.10433675]
[1767691175927,1.07947879,3222.0,3221.2,0.46236272]
[1767691176213,1.07947879,3222.0,3221.1,0.001]
[1767691176623,1.07747879,3221.9,3221.1,0.001]
[1767691176912,1.07747879,3221.6,3221.1,0.001]
[1767691177412,10.83198364,3222.0,3221.1,0.001]
[1767691177413,1.07747879,3221.8,3221.1,0.001]
[1767691178520,0.002,3222.0,3221.1,0.001]
[1767691178720,1.07747879,3222.1,3221.8,0.01915612]
[1767691179020,1e-08,3222.2,3221.8,0.01915612]
[1767691179216,0.002,3222.4,3221.8,1.06110952]
[1767691179599,0.002,3222.7,3221.9,1.0419534]
[1767691180340,0.002,3222.7,3222.1,1.0419534]
[1767691180508,0.002,3222.7,3222.0,6.20732464]
[1767691180509,0.002,3222.7,3222.2,1.7668812]
[1767691180692,0.002,3222.9,3222.3,1.0419534]
[1767691181200,0.815,3223.2,3222.7,1.0419534]
[1767691181201,1e-08,3223.2,3222.7,1.0419534]
[1767691182305,1e-08,3223.2,3222.9,6.20559122]
[1767691182609,0.002,3223.3,3222.9,7.24754462]
[1767691182793,0.002,3223.5,3222.9,6.20559122]
[1767691182994,0.002,3223.5,3222.9,6.82615034]
[1767691183237,0.002,3223.8,3222.9,6.82615034]
[1767691183938,0.002,3223.8,3223.0,1.0419534]
[1767691184818,0.002,3223.8,3223.2,1.0419534]
[1767691186833,0.002,3223.8,3223.2,4.14436415]
[1767691188335,0.002,3223.8,3223.3,1.0419534]
[1767691189832,0.002,3223.8,3223.4,1.0419534]
[1767691192252,0.002,3223.8,3223.5,1.0419534]
[1767691193556,0.002,3223.8,3223.3,1.0419534]
[1767691199581,0.002,3223.8,3223.1,0.92705382]
[1767691200249,0.002,3223.8,3223.1,4.02960592]
[1767691200870,0.813,3223.7,3223.1,0.92705382]
[1767691201646,0.813,3223.7,3223.1,4.02964837]
[1767691202032,0.813,3223.7,3223.1,0.92705382]
[1767691204877,0.813,3223.7,3223.4,0.001]
[1767691213170,0.813,3223.7,3223.4,0.91676983]
[1767691214246,0.813,3223.7,3223.2,0.91576983]
[1767691214758,0.813,3223.7,3223.0,4.01846727]
[1767691214944,0.813,3223.7,3223.0,4.73060225]
[1767691215141,0.813,3223.7,3223.1,0.91576983]
[1767691215568,0.813,3223.7,3223.1,4.01834926]
[1767691215872,0.813,3223.7,3223.1,4.01833726]
[1767691216066,0.813,3223.7,3223.2,0.91576983]
[1767691217867,0.813,3223.7,3222.9,0.91576983]
[1767691218066,3.91503316,3223.7,3222.9,0.91576983]
[1767691218379,4.61693286,3223.7,3222.6,0.91576983]
[1767691218787,4.61693286,3223.7,3222.7,4.01875482]
[1767691219577,4.61693286,3223.7,3222.7,0.91576983]
[1767691220163,7.71896602,3223.7,3222.7,0.91576983]
[1767691220378,4.61693286,3223.7,3222.7,0.91576983]
[1767691220574,0.40032788,3223.6,3222.7,4.01875203]
[1767691220881,0.40032788,3223.6,3222.8,0.91576983]
[1767691221277,0.40032788,3223.6,3222.5,4.74576983]
[1767691221585,0.813,3223.5,3222.8,0.91576983]
[1767691222861,0.813,3223.5,3222.9,0.91576983]
[1767691223080,0.813,3223.5,3223.0,0.91576983]
[1767691225580,0.002,3223.8,3223.0,0.91576983]
[1767691225781,0.813,3223.5,3223.0,0.91576983]
[1767691226153,0.002,3223.8,3223.1,0.91576983]
[1767691226355,0.813,3223.7,3223.1,0.91576983]
[1767691228884,0.813,3223.7,3223.1,0.91676983]
[1767691232177,0.002,3223.8,3223.1,0.91676983]
[1767691232478,0.002,3223.8,3223.2,0.94926448]
[1767691232680,0.002,3223.8,3223.4,0.94926448]
[1767691233697,0.002,3223.8,3223.5,0.94926448]
[1767691234462,0.68927504,3223.8,3223.1,0.001]
[1767691234789,0.68927504,3223.8,3222.9,0.94926448]
[1767691234990,0.68927504,3223.8,3223.0,0.94926448]
[1767691235195,0.68927504,3223.8,3223.1,0.94926448]
[1767691235494,0.002,3223.8,3223.1,0.94926448]
[1767691237398,0.38110167,3223.8,3223.1,0.94926448]
[1767691240589,3.48303797,3223.8,3223.1,0.94926448]
[1767691240896,0.002,3223.5,3223.1,0.94926448]
[1767691241289,0.002,3223.5,3223.0,3.10268648]
[1767691241795,0.002,3223.5,3223.1,3.10254539]
[1767691242091,0.002,3223.5,3223.2,1.35444547]
[1767691242976,0.002,3223.8,3223.2,4.45694707]
[1767691243564,0.002,3223.8,3223.3,0.94926448]
[1767691245093,0.002,3223.8,3223.3,3.10239573]
[1767691245295,0.002,3223.8,3223.4,0.94926448]
[1767691245482,0.002,3223.8,3223.5,0.40516602]
[1767691245872,0.813,3224.0,3223.5,0.40516602]
[1767691246068,0.002,3224.1,3223.5,1.3544305]
[1767691246268,0.002,3224.1,3223.6,0.94926448]
[1767691247198,0.68727504,3224.4,3223.7,4.0512901]
[1767691247398,0.813,3224.5,3223.9,0.94926448]
[1767691250004,0.813,3224.5,3224.0,0.94926448]
[1767691250171,0.68727504,3224.4,3223.8,0.40512901]
[1767691250378,0.68727504,3224.4,3223.5,3.50732913]
[1767691250898,0.68727504,3224.4,3223.6,3.1021104]
[1767691251274,0.68727504,3224.4,3223.8,0.94926448]
[1767691251685,0.813,3224.5,3223.9,0.94926448]
[1767691251891,0.813,3224.5,3223.9,1.35438202]
[1767691252585,0.002,3224.1,3223.9,1.35438202]
[1767691252786,0.68727504,3224.4,3223.9,0.40511754]
[1767691253108,0.002,3224.4,3223.9,0.40511754]
[1767691253402,0.002,3224.4,3223.9,1.35438202]
[1767691253607,0.002,3224.4,3224.0,0.75582223]
[1767691254179,1.50027504,3224.9,3224.1,0.94926448]
[1767691256183,4.60115016,3224.9,3224.1,0.94926448]
[1767691256399,1.50027504,3224.9,3224.1,0.94926448]
[1767691257103,4.6011724,3224.9,3224.1,0.94926448]
[1767691257295,4.6011724,3224.9,3224.2,1.4203989]
[1767691257494,1.50027504,3224.9,3224.2,0.93972115]
[1767691257682,4.60115131,3224.9,3224.2,0.93972115]
[1767691258407,1.50027504,3224.9,3224.2,0.93972115]
[1767691258609,0.813,3224.9,3224.3,0.93972115]
[1767691258781,0.813,3224.9,3224.5,0.93972115]
[1767691259604,0.813,3224.9,3224.2,0.93972115]
[1767691260010,3.91387923,3224.9,3224.2,0.93972115]
[1767691260311,4.60115427,3224.9,3224.2,0.93972115]
[1767691260604,1.50027504,3224.9,3224.2,0.93972115]
[1767691260808,1.50027504,3224.9,3224.2,1.34385588]
[1767691262189,0.76588886,3224.7,3223.6,0.98707673]
[1767691262379,0.76588886,3224.6,3223.6,0.98707673]
[1767691264918,0.76588886,3224.6,3223.8,0.001]
[1767691265218,0.76788886,3224.5,3223.8,0.001]
[1767691265589,0.76788886,3224.5,3223.8,0.98807673]
[1767691265804,0.002,3224.5,3223.9,0.7192128]
[1767691266009,0.002,3224.5,3224.0,0.98707673]
[1767691267103,0.002,3224.5,3224.1,0.98707673]
[1767691269110,0.002,3224.5,3224.2,0.98707673]
[1767691269310,0.002,3224.8,3224.2,0.98707673]
[1767691269514,0.002,3224.8,3224.3,1.39594675]
[1767691270037,0.002,3224.8,3224.4,0.98707673]
[1767691270717,0.76788886,3225.1,3224.4,0.98707673]
[1767691271324,0.76788886,3225.1,3224.4,4.08842704]
[1767691271738,0.76788886,3225.1,3224.5,0.98707673]
[1767691271932,0.002,3225.1,3224.6,0.98707673]
[1767691273636,0.76788886,3225.1,3224.5,0.44972971]
[1767691274437,0.76788886,3225.1,3224.3,1.39594675]
[1767691275042,0.002,3225.1,3224.5,0.98707673]
[1767691275240,0.002,3225.1,3224.7,0.98707673]
[1767691278920,0.002,3224.8,3224.7,0.98707673]
[1767691279231,0.002,3225.1,3224.6,0.98707673]
[1767691279430,0.002,3225.1,3224.5,3.10125013]
[1767691279431,0.002,3225.1,3224.7,1.39590942]
[1767691279818,0.002,3225.1,3224.8,0.98707673]
[1767691280220,0.002,3225.1,3224.6,0.98707673]
[1767691282246,0.002,3225.1,3224.7,0.98707673]
[1767691286649,0.002,3225.1,3224.7,3.10105408]
[1767691286849,0.002,3225.1,3224.8,0.31010541]
[1767691287047,0.76588886,3225.5,3224.8,0.31010541]
[1767691287259,0.76588886,3225.4,3224.3,4.08847316]
[1767691287561,0.76588886,3225.4,3224.4,3.10134733]
[1767691287930,0.76588886,3225.4,3224.3,3.10140957]
[1767691288349,0.76588886,3225.2,3224.2,3.10254456]
[1767691288664,0.76588886,3225.2,3224.3,0.98707673]
[1767691288961,0.76588886,3225.1,3224.3,0.98707673]
[1767691290030,3.86664238,3225.1,3224.3,0.98707673]
[1767691290876,3.86664238,3225.1,3224.5,0.001]
[1767691290877,8.47785056,3225.1,3224.5,0.001]
[1767691291032,0.002,3224.9,3224.5,0.001]
[1767691292253,0.76788886,3224.9,3224.5,0.001]
[1767691292562,1.48347888,3224.9,3224.5,0.001]
[1767691293331,0.76588886,3224.8,3224.2,0.001]
[1767691294263,3.86689302,3224.8,3224.2,0.001]
[1767691294655,0.812,3224.7,3224.2,0.001]
[1767691295560,0.71759002,3224.9,3224.2,0.94409778]
[1767691295761,0.813,3224.8,3224.2,0.94409778]
[1767691296948,0.76588886,3224.7,3224.2,0.001]
[1767691297145,1.1574778,3224.7,3224.2,0.001]
[1767691298340,4.25863487,3224.7,3224.2,0.001]
[1767691298843,1.1574778,3224.7,3224.2,0.001]
[1767691299049,0.76588886,3224.6,3224.2,0.001]
[1767691300177,0.76588886,3224.8,3224.2,0.001]
[1767691300760,3.91594406,3224.9,3224.2,0.94409778]
[1767691301086,4.69420746,3224.9,3224.2,0.94409778]
[1767691301459,5.46009632,3224.9,3224.2,0.94409778]
[1767691302060,8.56104038,3224.9,3224.2,0.94409778]
[1767691303680,5.46009632,3224.9,3224.2,0.94409778]
[1767691303864,8.56104038,3224.9,3224.5,0.001]
[1767691304481,0.002,3224.8,3224.5,0.001]
[1767691306284,0.32596418,3224.8,3224.2,0.94409778]
[1767691306451,0.32596418,3224.8,3224.2,0.94209778]
[1767691306878,3.10106366,3224.7,3224.2,0.94209778]
[1767691309279,3.86795252,3224.7,3223.9,0.94309778]
[1767691313685,0.002,3224.8,3223.9,0.94309778]
[1767691313869,0.002,3224.8,3224.0,0.94309778]
[1767691314070,3.10302552,3224.8,3224.0,0.94309778]
[1767691314793,3.86991438,3224.8,3224.0,0.94309778]
[1767691316194,3.86991438,3224.8,3224.2,0.001]
[1767691316493,0.002,3224.5,3224.2,0.001]
[1767691323563,0.002,3224.5,3224.2,0.97812379]
[1767691323892,0.002,3224.5,3224.2,0.97612379]
[1767691325972,0.002,3224.5,3223.8,0.001]
[1767691326191,0.002,3224.5,3223.8,0.97812379]
[1767691326496,0.002,3224.5,3223.9,0.97712379]
[1767691326797,0.002,3224.5,3223.9,0.97327374]
[1767691328292,0.002,3224.5,3224.2,0.001]
[1767691328500,0.002,3224.4,3223.9,0.97327374]
[1767691338210,0.002,3224.4,3223.8,0.001]
[1767691338211,4.61120818,3224.2,3223.8,0.001]
[1767691338506,5.58190768,3224.2,3223.3,0.97712379]
[1767691338712,0.9706995,3224.1,3223.3,0.97712379]
[1767691339112,0.9706995,3224.1,3223.4,0.97712379]
[1767691339283,1.52889027,3224.1,3223.4,0.97712379]
[1767691339489,0.9706995,3224.0,3223.2,3.10246103]
[1767691340299,0.55819077,3224.1,3223.3,0.97712379]
[1767691340499,4.63056691,3224.1,3223.3,0.97712379]
[1767691340909,1.52889027,3224.1,3223.3,0.97712379]
[1767691341114,4.63053264,3224.1,3223.3,0.97712379]
[1767691341812,0.9706995,3223.9,3223.1,0.97712379]
[1767691342416,1.7836995,3223.9,3223.1,0.97712379]
[1767691342920,4.88558356,3223.9,3223.1,0.97712379]
[1767691344019,0.9706995,3223.8,3223.1,0.97712379]
[1767691344321,1.60967382,3223.7,3223.1,0.97712379]
[1767691344508,4.71175511,3223.7,3223.1,0.97712379]
[1767691345422,1.60967382,3223.7,3223.1,0.97712379]
[1767691347221,4.71174286,3223.7,3223.1,0.97712379]
[1767691347715,4.71174286,3223.7,3222.9,0.97712379]
[1767691347906,1.60967382,3223.7,3222.9,0.97712379]
[1767691348105,0.813,3223.9,3223.1,0.97712379]
[1767691348106,1.7836995,3223.9,3223.1,0.97712379]
[1767691348417,3.91489121,3223.9,3223.1,0.97712379]
[1767691349023,4.88559071,3223.9,3223.1,0.97712379]
[1767691350430,7.98748192,3223.9,3223.1,0.97712379]
[1767691350798,0.9706995,3223.8,3223.1,0.97712379]
[1767691352598,0.9706995,3223.8,3222.9,0.99975408]
[1767691353003,3.10202562,3223.7,3222.9,0.99975408]
[1767691353198,0.96461502,3223.6,3222.7,0.99975408]
[1767691355000,0.96461502,3223.4,3222.7,0.99975408]
[1767691355202,0.96461502,3223.3,3222.7,0.99975408]
[1767691355617,0.96461502,3223.3,3222.1,0.99975408]
[1767691356305,0.96461502,3223.3,3222.3,0.99975408]
[1767691356525,0.96461502,3223.3,3222.4,0.99975408]
[1767691357129,0.96461502,3223.2,3222.4,0.99975408]
[1767691357326,1.34994104,3223.2,3222.4,0.99975408]
[1767691357841,0.96461502,3223.1,3222.4,0.99975408]
[1767691358710,0.96461502,3223.1,3222.1,0.99975408]
[1767691359228,0.96461502,3222.9,3222.1,0.99975408]
[1767691359426,0.96461502,3223.5,3222.2,1.03078877]
[1767691359678,0.96461502,3223.4,3222.4,0.99975408]